Cogmind - Beta 13 @@@ ROGUE MODE // 2024.04.10 @ 17:15:42 Player: Bace Troncons Result: Destroyed by G-34 Mercenary with Small Laser Performance ------------- Evolutions (1) 500 Regions Visited (2) 400 Robots Destroyed (21) 105 Value Destroyed (636) 636 Prototype IDs (3) 60 Alien Tech Used (0) 0 Bonus (0) 0 TOTAL SCORE: 1701 Bonus ------- None Cogmind --------- Core Integrity 0/400 Matter 274/300 Energy 3/100 System Corruption 4% Temperature Cool (6) Movement Core (700) Ox13 Location -9/Materials Parts ------- > --- POWER (1) -------- (None) > --- PROPULSION (2) --- (None) > --- UTILITY (4) ------ Large Storage Unit Large Storage Unit Signal Interpreter ECM Suite > --- WEAPON (2) ------- (None) > --- INVENTORY (15) --- Light Treads Aluminum Leg Heat Sink Large Storage Unit Structural Scanner Seismic Detector ECM Suite Light Armor Plating Small Laser Small Laser Particle Gun Light Assault Rifle Mace Peak State ------------ > --- POWER ------------ Improved Ion Engine > --- PROPULSION ------- Aluminum Leg Aluminum Leg > --- UTILITY ---------- Large Storage Unit Large Storage Unit Signal Interpreter Hardened Light Armor Plating > --- WEAPON ----------- Light Assault Rifle Light Assault Rifle > --- INVENTORY -------- Aluminum Leg Aluminum Leg Large Storage Unit Structural Scanner Seismic Detector ECM Suite Light Armor Plating Small Laser Advanced Beam Cannon [Rating: 12] Favorites ----------- Power Light Ion Engine Engine Light Ion Engine Propulsion Aluminum Leg Treads Light Treads Leg Aluminum Leg Utility Large Storage Unit Device ECM Suite Storage Large Storage Unit Processor Signal Interpreter Protection Hardened Light Armor Plating Weapon Light Assault Rifle Energy Gun Small Laser Energy Cannon Advanced Beam Cannon Ballistic Gun Light Assault Rifle Ballistic Cannon Improved Light Cannon Special Melee Weapon Datajack Build | -11 -10 -9 ------- Run | Yrd Mat Mat Slots Evolved 2 | . . 2 Power . | . . . Propulsion . | . . . Utility 2 | . . 2 Weapon . | . . . Parts Attached 39 | 6 15 18 Power 6 | 1 1 4 Engine 6 | 1 1 4 Core . | . . . Reactor . | . . . Propulsion 9 | 3 1 5 Treads 2 | 1 . 1 Leg 7 | 2 1 4 Wheel . | . . . Hover . | . . . Flight . | . . . Utility 14 | 1 9 4 Device 3 | . 2 1 Storage 7 | 1 4 2 Processor 1 | . 1 . Hackware . | . . . Protection 3 | . 2 1 Artifact . | . . . Weapon 10 | 1 4 5 Energy Gun 3 | . 2 1 Energy Cannon 1 | . . 1 Ballistic Gun 4 | 1 1 2 Ballistic Cannon 1 | . . 1 Launcher . | . . . Special Weapon . | . . . Impact Weapon . | . . . Slashing Weapon . | . . . Piercing Weapon . | . . . Special Melee Weapon 1 | . 1 . Unidentified Prototypes 1 | . . 1 Parts Lost 16 | . 5 11 Power 4 | . 1 3 Propulsion 6 | . 1 5 Utility 2 | . 1 1 Weapon 4 | . 2 2 Highest Loss Streak 5 | . 5 3 To Critical Strikes . | . . . Average Slot Usage (%) 87 | . 89 87 Engine 8 | . 12 7 Treads 1 | . . 1 Leg 19 | . 27 16 Device 5 | . 4 5 Storage 17 | . 6 22 Processor 10 | . 10 11 Protection 4 | . 3 4 Energy Gun 4 | . 4 4 Ballistic Gun 12 | . 17 10 Ballistic Cannon 2 | . . 3 Naked Turns . | . . . Heaviest Build 89 | 9 89 54 Greatest Support 20 | 20 20 20 Greatest Overweight (x) 17 | 1 4 17 Average Overweight (x) 1 | . . 2 Largest Inventory Capacity 25 | 8 25 15 Average Capacity 12 | 7 8 15 Most Carried 14 | 4 9 14 Average Carried 8 | 2 4 10 Final Capacity 15 | 8 15 15 Final Carried 13 | 4 9 13 Class Distribution -------------------- 73% | Mutant 26% | Scavenger-Mutant Dominant Class ---------------- Mutant | -10/Materials Mutant | -9/Materials Resources | -11 -10 -9 ----------- Run | Yrd Mat Mat Matter Collected 721 | 213 180 328 Remotely . | . . . Salvage Created 647 | . 198 449 Parts 44 | . 15 29 Haulers Intercepted . | . . . Recyclers Shooed . | . . . Parts Field Recycled . | . . . Retrieved Matter . | . . . Parts Self-Destructed . | . . . Prevented . | . . . Kills | -11 -10 -9 ------- Run | Yrd Mat Mat Combat Hostiles Destroyed 19 | . 5 14 Guns 14 | . 5 9 Cannons 5 | . . 5 Classes Destroyed 5 | . 3 2 Worker 1 | . . 1 Watcher 1 | . 1 . Swarmer 4 | . 1 3 Grunt 12 | . 4 8 Sentry 3 | . . 3 Best Kill Streak 3 | . 2 3 Combat Bots Only 3 | . 2 3 Max Kills in Single Turn 1 | . 1 1 Gunslinging . | . . . Exploded . | . . . Melee . | . . . Uniques/NPCs Destroyed . | . . . Combat | -11 -10 -9 -------- Run | Yrd Mat Mat Hostile Shots Fired 258 | . 50 208 Missed 57 | . 15 42 Damage Taken 2357 | . 400 1957 Core 475 | . 65 410 Absorbed by Shields . | . . . Core Remaining (%) 87 | 100 74 . Volleys Fired 104 | . 35 69 Largest 2 | . 2 2 Hottest 85 | . 60 85 Shots Fired 160 | . 47 113 Gun 135 | . 47 88 Cannon 25 | . . 25 Launcher . | . . . Special . | . . . Kinetic 136 | . 38 98 Thermal 23 | . 8 15 Explosive . | . . . Electromagnetic 1 | . 1 . Robot Hit Streak 17 | . 17 11 Robot Miss Streak 4 | . 2 4 Penetration Max . | . . . Secondary Targets 1 | . . 1 Max Gunslinging Chain 1 | . . 1 Shots Hit Robots 111 | . 35 76 Core Hits 42 | . 15 27 Critical Kills . | . . . Critical Parts Destroyed . | . . . Critical Strikes . | . . . Melee Attacks 6 | . 6 . Impact . | . . . Slashing . | . . . Piercing . | . . . Sneak Attacks 3 | . 3 . Combat Hostiles . | . . . Follow-up Attacks . | . . . Damage Inflicted 1202 | . 292 910 Guns 797 | . 292 505 Cannons 405 | . . 405 Explosions . | . . . Melee . | . . . Ramming . | . . . Kinetic 1040 | . 249 791 Thermal 151 | . 32 119 Explosive . | . . . Electromagnetic 11 | . 11 . Impact . | . . . Slashing . | . . . Piercing . | . . . Highest Corruption 4 | . . 4 Average Corruption 4 | . . 4 Corruption Purged . | . . . Corruption Blocked . | . . . Effects 14 | . . 14 Message Errors 8 | . . 8 Matter Fused 4 | . . 4 Heat Flow Errors 1 | . . 1 Data Loss (minor) 1 | . . 1 Overload Shots . | . . . Overflow Damage . | . . . Projectiles . | . . . Explosions . | . . . Melee . | . . . Knockbacks 11 | . . 11 Impact . | . . . Kinetic 9 | . . 9 Secondary 2 | . . 2 Self-Inflicted Damage . | . . . Shots . | . . . Rammed . | . . . Targets Rammed . | . . . Kicked . | . . . Crushed . | . . . Highest Temperature 158 | . 74 158 Average Temperature 29 | . 26 30 Received Heat Transfer 1074 | . 177 897 Siege Activations . | . . . Robots Corrupted . | . . . Combat Hostiles . | . . . Parts Fried . | . . . Impact Corruptions . | . . . Robots Melted . | . . . Combat Hostiles . | . . . Parts Melted . | . . . Heat Transferred 336 | . 75 261 Parts Sabotaged . | . . . Parts Stolen . | . . . Parts Stripped . | . . . Power Chain Reactions . | . . . Alert | -11 -10 -9 ------- Run | Yrd Mat Mat Peak Influence 156 | . 122 156 Initial . | . . . Average 49 | . 25 61 Maximum Alert Level . | . . . Low Security (%) 100 | 100 100 100 Level 1 . | . . . Level 2 . | . . . Level 3 . | . . . Level 4 . | . . . Level 5 . | . . . High Security . | . . . Max Security . | . . . Squads Dispatched 5 | . 1 4 Investigation 3 | . . 3 Extermination . | . . . Reinforcement 2 | . 1 1 Assault . | . . . Garrison . | . . . Intercept . | . . . Searches Triggered . | . . . Construction Impeded . | . . . Haulers Reinforced . | . . . Active Scanning Responses . | . . . Cargo Convoy Interrupts . | . . . Stealth | -11 -10 -9 --------- Run | Yrd Mat Mat Distress Signals 3 | . . 3 Communications Jammed . | . . . Distress Signals . | . . . Times Spotted 34 | . 10 24 Peak Tracking Total 5 | . 5 4 Tactical Retreats 5 | . 1 4 Traps | -11 -10 -9 ------- Run | Yrd Mat Mat Traps Triggered 1 | . . 1 Indirectly . | . . . Trap Hack Attempts . | . . . Triggered . | . . . Disarmed . | . . . Reprogrammed . | . . . Reused . | . . . Traps Extracted . | . . . Installed . | . . . Triggered . | . . . Machines | -11 -10 -9 ---------- Run | Yrd Mat Mat Machines Disabled 1 | . . 1 Max in Single Turn 1 | . . 1 Machines Repaired . | . . . Machines Dismantled . | . . . Machines Sabotaged . | . . . Overloaded Fab Kills . | . . . Hacking | -11 -10 -9 --------- Run | Yrd Mat Mat Machines Accessed 8 | . 3 5 Terminals 3 | . 1 2 Fabricators . | . . . Repair Stations 2 | . . 2 Recycling Units 2 | . 2 . Scanalyzers 1 | . . 1 Garrison Access . | . . . Total Hacks 23 | . 8 15 Successful 11 | . 5 6 Failed 12 | . 3 9 Catastrophic 1 | . . 1 Database Lockouts . | . . . Manual . | . . . Terminals 11 | . 4 7 Fabricators . | . . . Repair Stations 5 | . . 5 Recycling Units 4 | . 4 . Scanalyzers 3 | . . 3 Garrison Access . | . . . Terminal Hacks 5 | . 2 3 Prototype ID Bank 1 | . 1 . Emergency Access Points 1 | . . 1 Security Status 1 | . 1 . Recall Reinforcements 1 | . . 1 Zone Layout 1 | . . 1 Fabricator Hacks . | . . . Repair Station Hacks 1 | . . 1 Scan Component 1 | . . 1 Recycling Unit Hacks 3 | . 3 . Report Inventory 1 | . 1 . Retrieve Components 2 | . 2 . Scanalyzer 2 | . . 2 Insert Component 1 | . . 1 Analyze 1 | . . 1 Garrison Access Hacks . | . . . Unauthorized Hacks . | . . . Terminals . | . . . Fabricators . | . . . Repair Stations . | . . . Recycling Units . | . . . Scanalyzers . | . . . Garrison Access . | . . . Data Cores Recovered . | . . . Used . | . . . Hacking Detections 6 | . 2 4 Full Trace Events 2 | . . 2 Feedback Events . | . . . Feedback Blocked . | . . . Robot Schematics Acquired . | . . . Robots Built . | . . . Authchips . | . . . Time . | . . . Total Robot Build Rating . | . . . Part Schematics Acquired 1 | . . 1 Parts Built . | . . . Authchips . | . . . Time . | . . . Total Part Build Rating . | . . . Parts Repaired . | . . . Time . | . . . Parts Recycled . | . . . Recycled Matter . | . . . Retrieved Matter . | . . . Retrieved Components 3 | . 3 . Parts Scanalyzed 1 | . . 1 Part Schematics Acquired 1 | . . 1 Parts Damaged . | . . . Bothacking | -11 -10 -9 ------------ Run | Yrd Mat Mat Used RIF Installer . | . . . Robots Hacked 1 | . 1 . Non-combat 1 | . 1 . Combat . | . . . Robot Hacks Applied 3 | . 3 . parse_system 1 | . 1 . no_distress 1 | . 1 . find_recycling 1 | . 1 . Relay Couplers Released . | . . . Fabnet Peak Effective % . | . . . Robots Rewired . | . . . Allies Hacked . | . . . Hacks Repelled . | . . . Allies | -11 -10 -9 -------- Run | Yrd Mat Mat Total Allies . | . . . Largest Group . | . . . Highest-Rated Group . | . . . Highest-Rated Ally . | . . . Total Orders . | . . . Ally Attacks . | . . . Total Damage . | . . . Kills . | . . . Allies Corrupted . | . . . Allies Melted . | . . . Intel | -11 -10 -9 ------- Run | Yrd Mat Mat Robot Analysis Total . | . . . Derelict Logs Recovered . | . . . Drone Launches . | . . . Drone Recoveries . | . . . Exploration | -11 -10 -9 ------------- Run | Yrd Mat Mat Turns Passed 1785 | 59 514 1212 Spaces Moved 648 | 37 277 334 Core 9 | 8 . 1 Treads 62 | 6 . 56 Legs 577 | 23 277 277 Wheels . | . . . Hover . | . . . Flight . | . . . Fastest Speed 50 | 50 120 260 Average Speed 205 | 119 135 273 Slowest Speed 900 | 160 400 900 Overloaded Moves . | . . . Propulsion Burnouts . | . . . Robots Hopped . | . . . Cave-ins Triggered . | . . . Exploration Rate (%) 24 | 3 46 23 Regions Visited 2 Branch Regions . Pre-discovered Areas . | . . . Known Exits Taken 1 | . 1 . Unknown Exits Taken 1 | 1 . . Scrap Searched . | . . . Spaces Dug . | . . . Terrain Destroyed . | . . . Melee . | . . . Projectile . | . . . AOE . | . . . Terrain Rammed . | . . . Walls Destroyed . | . . . Machines Disabled . | . . . Actions | -11 -10 -9 --------- Run | Yrd Mat Mat Total 965 | 51 380 534 Wait 108 | . 15 93 Move 646 | 36 276 334 Hop . | . . . Pick Up 46 | 9 22 15 Fast Attach . | . . . Attach 27 | 5 11 11 Detach 5 | . 3 2 Swap 12 | 1 4 7 Drop 11 | . 8 3 Fire 104 | . 35 69 Melee 6 | . 6 . Ram . | . . . Kick . | . . . Crush . | . . . Escape Stasis . | . . . Rewire . | . . . Trap . | . . . Miscellaneous . | . . . Route ------- -11/Scrapyard -10/Materials -9/Materials History --------- Turn | Location | Event 16 | -11/Scrapyard | Discovered new exit (range 16) 60 | -11/Scrapyard | Entered Materials 317 | -10/Materials | Build established: Mutant 362 | -10/Materials | Lost 5 parts (1p1n1u2w) 499 | -10/Materials | Discovered new exit (range 8) 572 | -10/Materials | Identified exit to Materials 574 | -10/Materials | Entered another Materials area 574 | -9/Materials | Evolved 2 slots: Utility x2 1320 | -9/Materials | Build established: Scavenger-Mutant 1412 | -9/Materials | Core integrity fell below 50% 1437 | -9/Materials | Lost 3 parts (2n1w) 1735 | -9/Materials | Core integrity fell below 20% 1786 | -9/Materials | Destroyed by G-34 Mercenary with Small Laser Last Messages --------------- 01620_ G-47 Trooper knocked back. 01622_ G-34 Mercenary knocked back. 01626_ G-47 Trooper destroyed. 01628_ G-34 Mercenary knocked back. 01632_ Imp. Light Cannon destroyed. 01637_ Acquired Broken Aluminum Leg. 01642_ Acquired Sml. Laser. 01645_ Acquired Particle Gun. 01654_ G-34 Mercenary destroyed. 01662_ Acquired 52 matter. 01664_ Imp. Ion Engine destroyed. 01670_ G-34 Mercenary destroyed. 01670_ Switching to secondary target: G-34 Mercenary. 01685_ System corrupted: Matter fused (-5). 01701_ Acquired Mace. 01703_ Dropped Faulty Adv. Beam Cannon. 01724_ Aluminum Leg destroyed. 01734_ |IEAMVH=Z6P>0C37:CR=XVBIV5CY1S0 01736_ Aluminum Leg destroyed. Map ----- +----------------------------------------------------+ | ???????????????????########### #?????????? | | ???????????????????# # #?????????? | | ???????????????????# ! ] + #?????????? | | ???????????????????# ]] # #?????????? | | ???????????????????# !]] # #?????????? | | ???????????????????########### #?????????? | | ?????????????????????????????# #?????????? | | ?????????????????????????????# #?????????? | | ?????????????????????????????# #?????????? | | ?????????????????????????????# #?????????? | | ?????????????????????????????# ########### | | ?????????????????????????????# ## # | | ???????????????#????????????## ## """ # | | ??????????????## ############ # """ # | | ??????????????# =# """ # | | ??????????????+ T= + # | | ??????????????# # " " # | | ??????????????# #### #### # "R" # | | ?????????????????????# #??####### """ # | | ?????????????????????# #????????# # | | ?????????????????????# ########?########## | | ?????????????????????# ######?????? | | ?????????????????????# #?????? | | ?????????????????????# #### #?????? | | ?????????????????????######## ####+######? | | ?????????????????????# @ # # #? | | ?????????????????????# g # # """ #? | | ?????????????????????# """ + # """"" #? | | ?????????????????????# """ # # """"" #? | | ?????????????????????# """ # + """"" #? | | ?????????????????????# # # """ #? | | ??????????????############+## # #? | | ??????????????# *#% # #? | | ??????????????# !+ = ###+#######? | | ??????????????# #%% #?# #??????? | | ??????????????# # % % #?# #??????? | | ??????????????########### ### #??????? | | ??????????????###########%= ####???? | | ??????????????# [ #???? | | ??????????????# #???? | | ??????????????# #########+###### #???? | | ??????????????# #?????# #?# #???? | | ??????????????# ####### #?# #???? | | ??????????????# #! # """ #?# #???? | | ??????????????# # S # """ #?# #???? | | ????##????##### #%! " # """ #?# #???? | | ??### ### # # "" # #?# #???? | | +% ########?# #???? | | ??### ### ### # ! #??####### #???? | | ????# ????#####?# # #??# ## #???? | +----------------------------------------------------+ Best States ------------- Heat Dissipation 28 Energy Generation 12 Energy Capacity 265 Matter Stores 300 Matter Capacity 300 Sight Range 16 Robot Scan Range 14 Terrain Scan Density 10 ECM Strength 1 Armor Coverage 150 Evasion (%) 55 Recoil Reduction 1 Item Schematics ----------------- Adv. Beam Cannon | -9/Materials | Scanalyzed Robot Schematics ------------------ None Fabricated ------------ Nothing Alien Tech Used ----------------- None Achievements -------------- None Challenges ------------ None Game ------ Seed MissileArmoredBlaster Manual? 0 Play Time 00:26:52 Cumulative 13.9 hours Start 2024.04.10 @ 16:45:35 End 2024.04.10 @ 17:15:42 Sessions 1 Manual Loads 0 Difficulty Rogue Special Mode None Game No. 30 Rogue 30 Adventurer 0 Explorer 0 Win Type - Total 0 Types 0/0/0/0/0/0/0/0/0 Lore% 17 Gallery% 19 Achievement% 17 Wizard Run 0 Options --------- Layout 1 ASCII 0 Keyboard 1 Movement Numpad Keybinds 0 Fullscreen 1 Font 24/Smallcaps Map View 50x35 Zoom Use 0% Tactical HUD 1 Map Filters NONE Filters NONE Steam 1 RUN: fd6c5875-86f5-4831-9a93-c30cfca4bec2